Cogmind - Beta 13 @@@ ROGUE MODE // 2024.05.13 @ 08:48:28 Player: Hejka26 Result: Self-destructed Performance ------------- Evolutions (1) 500 Regions Visited (3) 600 Robots Destroyed (20) 100 Value Destroyed (517) 517 Prototype IDs (1) 20 Alien Tech Used (0) 0 Bonus (-18) -18 TOTAL SCORE: 1719 Bonus ------- Friendly Fire -18 Cogmind --------- Core Integrity 334/400 Matter 300/300 Energy 125/125 System Corruption 0% Temperature Cool (0) Movement Treading (160) Location -9/Materials Parts ------- > --- POWER (1) -------- Light Ion Engine > --- PROPULSION (2) --- Light Treads Light Treads > --- UTILITY (3) ------ Improved Signal Interpreter Power Shielding Sensor Drone Bay (20/20) > --- WEAPON (3) ------- Beam Cannon Assault Rifle Assault Rifle > --- INVENTORY (5) ---- Aluminum Leg Aluminum Leg Small Storage Unit Improved Signal Interpreter Peak State ------------ > --- POWER ------------ Light Ion Engine > --- PROPULSION ------- Light Treads Light Treads > --- UTILITY ---------- Improved Signal Interpreter Power Shielding Sensor Drone Bay > --- WEAPON ----------- Beam Cannon Assault Rifle Assault Rifle > --- INVENTORY -------- Aluminum Leg Aluminum Leg Small Storage Unit [Rating: 18] Favorites ----------- Power Light Ion Engine Engine Light Ion Engine Propulsion Light Treads Treads Light Treads Utility Power Shielding Device Sensor Drone Bay Storage Small Storage Unit Processor Signal Interpreter Protection Power Shielding Weapon Assault Rifle Energy Cannon Beam Cannon Ballistic Gun Assault Rifle Build | -11 -10 -10 -9 ------- Run | Yrd Mat Min Mat Slots Evolved 2 | . . . 2 Power . | . . . . Propulsion . | . . . . Utility 1 | . . . 1 Weapon 1 | . . . 1 Parts Attached 15 | 6 3 2 4 Power 2 | 1 . 1 . Engine 2 | 1 . 1 . Core . | . . . . Reactor . | . . . . Propulsion 3 | 2 . . 1 Treads 3 | 2 . . 1 Leg . | . . . . Wheel . | . . . . Hover . | . . . . Flight . | . . . . Utility 6 | 1 2 1 2 Device 1 | . . 1 . Storage 1 | 1 . . . Processor 2 | . 1 . 1 Hackware . | . . . . Protection 2 | . 1 . 1 Artifact . | . . . . Weapon 4 | 2 1 . 1 Energy Gun . | . . . . Energy Cannon 1 | . 1 . . Ballistic Gun 3 | 2 . . 1 Ballistic Cannon . | . . . . Launcher . | . . . . Special Weapon . | . . . . Impact Weapon . | . . . . Slashing Weapon . | . . . . Piercing Weapon . | . . . . Special Melee Weapon . | . . . . Unidentified Prototypes 1 | . . 1 . Parts Lost . | . . . . Power . | . . . . Propulsion . | . . . . Utility . | . . . . Weapon . | . . . . Highest Loss Streak . | . . . . To Critical Strikes . | . . . . Average Slot Usage (%) 98 | . 96 100 99 Engine 13 | . 14 14 11 Treads 26 | . 28 28 21 Device 4 | . . 4 11 Storage 1 | . 3 . . Processor 11 | . 10 14 11 Protection 10 | . 11 10 11 Energy Cannon 11 | . 11 14 11 Ballistic Gun 17 | . 16 14 22 Naked Turns . | . . . . Heaviest Build 25 | 12 14 22 25 Greatest Support 40 | 40 40 40 40 Greatest Overweight (x) 1 | . . . 1 Average Overweight (x) . | . . . . Largest Inventory Capacity 8 | 8 8 5 5 Average Capacity 5 | 6 5 5 5 Most Carried 6 | 4 6 5 4 Average Carried 4 | 1 4 5 3 Final Capacity 8 | 8 5 5 5 Final Carried 5 | 4 5 5 4 Class Distribution -------------------- 74% | Mutant 25% | Tank Dominant Class ---------------- Mutant | -10/Materials Mutant | -10/Mines Tank | -9/Materials Resources | -11 -10 -10 -9 ----------- Run | Yrd Mat Min Mat Matter Collected 587 | 214 172 . 201 Remotely . | . . . . Salvage Created 610 | . 271 . 339 Parts 52 | . 26 . 26 Haulers Intercepted . | . . . . Recyclers Shooed . | . . . . Parts Field Recycled . | . . . . Retrieved Matter . | . . . . Parts Self-Destructed . | . . . . Prevented . | . . . . Kills | -11 -10 -10 -9 ------- Run | Yrd Mat Min Mat Combat Hostiles Destroyed 16 | . 8 . 8 Guns 7 | . 2 . 5 Cannons 9 | . 6 . 3 Classes Destroyed 5 | . 3 . 2 Operator 1 | . . . 1 Watcher 3 | . 2 . 1 Swarmer 6 | . 3 . 3 Grunt 7 | . 5 . 2 Sentry 3 | . . . 3 Best Kill Streak 4 | . 4 . 3 Combat Bots Only 4 | . 4 . 3 Max Kills in Single Turn 1 | . 1 . 1 Gunslinging . | . . . . Exploded . | . . . . Melee . | . . . . Uniques/NPCs Destroyed . | . . . . Combat | -11 -10 -10 -9 -------- Run | Yrd Mat Min Mat Hostile Shots Fired 84 | . 43 . 41 Missed 19 | . 13 . 6 Damage Taken 693 | . 278 . 415 Core 122 | . 56 . 66 Absorbed by Shields . | . . . . Redirected to Shielding 20 | . 10 . 10 Core Remaining (%) 88 | 100 . 77 . Volleys Fired 49 | . 25 1 23 Largest 3 | . 2 2 3 Hottest 100 | . 80 80 100 Shots Fired 121 | . 50 2 69 Gun 79 | . 32 1 46 Cannon 42 | . 18 1 23 Launcher . | . . . . Special . | . . . . Kinetic 79 | . 32 1 46 Thermal 42 | . 18 1 23 Explosive . | . . . . Electromagnetic . | . . . . Robot Hit Streak 10 | . 9 . 10 Robot Miss Streak 8 | . 3 . 8 Penetration Max . | . . . . Secondary Targets 1 | . 1 . . Max Gunslinging Chain 1 | . 1 . . Shots Hit Robots 61 | . 29 . 32 Core Hits 30 | . 14 . 16 Critical Kills . | . . . . Critical Parts Destroyed . | . . . . Critical Strikes . | . . . . Melee Attacks . | . . . . Impact . | . . . . Slashing . | . . . . Piercing . | . . . . Sneak Attacks . | . . . . Combat Hostiles . | . . . . Follow-up Attacks . | . . . . Damage Inflicted 908 | . 429 . 479 Guns 489 | . 219 . 270 Cannons 419 | . 210 . 209 Explosions . | . . . . Melee . | . . . . Ramming . | . . . . Kinetic 489 | . 219 . 270 Thermal 419 | . 210 . 209 Explosive . | . . . . Electromagnetic . | . . . . Impact . | . . . . Slashing . | . . . . Piercing . | . . . . Highest Corruption . | . . . . Average Corruption . | . . . . Corruption Purged . | . . . . Corruption Blocked . | . . . . Overload Shots . | . . . . Overflow Damage . | . . . . Projectiles . | . . . . Explosions . | . . . . Melee . | . . . . Knockbacks . | . . . . Impact . | . . . . Kinetic . | . . . . Secondary . | . . . . Self-Inflicted Damage . | . . . . Shots . | . . . . Rammed . | . . . . Targets Rammed . | . . . . Kicked . | . . . . Crushed . | . . . . Highest Temperature 124 | . 102 18 124 Average Temperature 42 | . 41 12 45 Received Heat Transfer 264 | . 102 . 162 Siege Activations . | . . . . Robots Corrupted . | . . . . Combat Hostiles . | . . . . Parts Fried . | . . . . Impact Corruptions . | . . . . Robots Melted . | . . . . Combat Hostiles . | . . . . Parts Melted 2 | . 1 . 1 Heat Transferred 888 | . 444 . 444 Parts Sabotaged . | . . . . Parts Stolen . | . . . . Parts Stripped . | . . . . Power Chain Reactions . | . . . . Alert | -11 -10 -10 -9 ------- Run | Yrd Mat Min Mat Peak Influence 342 | . 269 28 342 Initial 28 | . . 28 10 Average 94 | . 94 28 175 Maximum Alert Level 1 | . 1 . 1 Low Security (%) 87 | 100 89 100 69 Level 1 12 | . 10 . 30 Level 2 . | . . . . Level 3 . | . . . . Level 4 . | . . . . Level 5 . | . . . . High Security . | . . . . Max Security . | . . . . Squads Dispatched 3 | . 1 . 2 Investigation . | . . . . Extermination . | . . . . Reinforcement 3 | . 1 . 2 Assault . | . . . . Garrison . | . . . . Intercept . | . . . . Searches Triggered . | . . . . Construction Impeded . | . . . . Haulers Reinforced . | . . . . Active Scanning Responses . | . . . . Cargo Convoy Interrupts . | . . . . Stealth | -11 -10 -10 -9 --------- Run | Yrd Mat Min Mat Distress Signals . | . . . . Communications Jammed . | . . . . Distress Signals . | . . . . Times Spotted 27 | . 11 . 16 Peak Tracking Total 4 | . 4 . 4 Tactical Retreats . | . . . . Traps | -11 -10 -10 -9 ------- Run | Yrd Mat Min Mat Traps Triggered . | . . . . Indirectly . | . . . . Trap Hack Attempts . | . . . . Triggered . | . . . . Disarmed . | . . . . Reprogrammed . | . . . . Reused . | . . . . Traps Extracted . | . . . . Installed . | . . . . Triggered . | . . . . Machines | -11 -10 -10 -9 ---------- Run | Yrd Mat Min Mat Machines Disabled 2 | . 1 . 1 Max in Single Turn 1 | . 1 . 1 Machines Repaired . | . . . . Machines Dismantled . | . . . . Machines Sabotaged . | . . . . Overloaded Fab Kills . | . . . . Hacking | -11 -10 -10 -9 --------- Run | Yrd Mat Min Mat Machines Accessed 2 | . 1 1 . Terminals 1 | . 1 . . Fabricators . | . . . . Repair Stations . | . . . . Recycling Units . | . . . . Scanalyzers . | . . . . Garrison Access . | . . . . Total Hacks 3 | . 2 1 . Successful 2 | . 1 1 . Failed 1 | . 1 . . Catastrophic . | . . . . Database Lockouts . | . . . . Manual . | . . . . Terminals 2 | . 2 . . Fabricators . | . . . . Repair Stations . | . . . . Recycling Units . | . . . . Scanalyzers . | . . . . Garrison Access . | . . . . Terminal Hacks 2 | . 1 1 . Open Door 1 | . . 1 . Hauler Manifests 1 | . 1 . . Fabricator Hacks . | . . . . Repair Station Hacks . | . . . . Recycling Unit Hacks . | . . . . Scanalyzer . | . . . . Garrison Access Hacks . | . . . . Unauthorized Hacks . | . . . . Terminals . | . . . . Fabricators . | . . . . Repair Stations . | . . . . Recycling Units . | . . . . Scanalyzers . | . . . . Garrison Access . | . . . . Data Cores Recovered 1 | . . . 1 Used . | . . . . Hacking Detections 1 | . 1 . . Full Trace Events . | . . . . Feedback Events . | . . . . Feedback Blocked . | . . . . Robot Schematics Acquired . | . . . . Robots Built . | . . . . Authchips . | . . . . Time . | . . . . Total Robot Build Rating . | . . . . Part Schematics Acquired . | . . . . Parts Built . | . . . . Authchips . | . . . . Time . | . . . . Total Part Build Rating . | . . . . Parts Repaired . | . . . . Time . | . . . . Parts Recycled . | . . . . Recycled Matter . | . . . . Retrieved Matter . | . . . . Retrieved Components . | . . . . Parts Scanalyzed . | . . . . Part Schematics Acquired . | . . . . Parts Damaged . | . . . . Bothacking | -11 -10 -10 -9 ------------ Run | Yrd Mat Min Mat Used RIF Installer . | . . . . Robots Hacked . | . . . . Non-combat . | . . . . Combat . | . . . . Robot Hacks Applied . | . . . . Relay Couplers Released . | . . . . Fabnet Peak Effective % . | . . . . Robots Rewired . | . . . . Allies Hacked . | . . . . Hacks Repelled . | . . . . Allies | -11 -10 -10 -9 -------- Run | Yrd Mat Min Mat Total Allies . | . . . . Largest Group . | . . . . Highest-Rated Group . | . . . . Highest-Rated Ally . | . . . . Total Orders 1 | . . . 1 EXPLORE 1 | . . . 1 Ally Attacks . | . . . . Total Damage . | . . . . Kills . | . . . . Allies Corrupted . | . . . . Allies Melted . | . . . . Intel | -11 -10 -10 -9 ------- Run | Yrd Mat Min Mat Robot Analysis Total . | . . . . Derelict Logs Recovered . | . . . . Drone Launches 20 | . . 20 . Drone Recoveries 20 | . . . 20 Exploration | -11 -10 -10 -9 ------------- Run | Yrd Mat Min Mat Turns Passed 1471 | 81 666 345 379 Spaces Moved 777 | 50 353 203 171 Core 10 | 10 . . . Treads 767 | 40 353 203 171 Legs . | . . . . Wheels . | . . . . Hover . | . . . . Flight . | . . . . Fastest Speed 50 | 50 160 160 160 Average Speed 158 | 138 160 160 160 Slowest Speed 240 | 160 160 160 240 Overloaded Moves . | . . . . Propulsion Burnouts . | . . . . Robots Hopped . | . . . . Cave-ins Triggered . | . . . . Exploration Rate (%) 30 | 4 47 49 22 Regions Visited 3 Branch Regions 1 Pre-discovered Areas . | . . . . Known Exits Taken 2 | . 1 1 . Unknown Exits Taken 1 | 1 . . . Scrap Searched . | . . . . Spaces Dug . | . . . . Terrain Destroyed . | . . . . Melee . | . . . . Projectile . | . . . . AOE . | . . . . Terrain Rammed . | . . . . Walls Destroyed . | . . . . Machines Disabled . | . . . . Actions | -11 -10 -10 -9 --------- Run | Yrd Mat Min Mat Total 908 | 59 404 221 224 Wait 56 | . 20 14 22 Move 774 | 49 352 202 171 Hop . | . . . . Pick Up 10 | 4 3 1 2 Fast Attach 7 | 6 . . 1 Attach 4 | . 1 . 3 Detach . | . . . . Swap 4 | . 2 2 . Drop 4 | . 1 1 2 Fire 49 | . 25 1 23 Melee . | . . . . Ram . | . . . . Kick . | . . . . Crush . | . . . . Escape Stasis . | . . . . Rewire . | . . . . Trap . | . . . . Miscellaneous . | . . . . Route ------- -11/Scrapyard -10/Materials (discovered 2 exits: *Mat / *Min) -10/Mines -9/Materials (discovered 2 exits: *Min / *Sto) History --------- Turn | Location | Event 16 | -11/Scrapyard | Discovered new exit (range 16) 82 | -11/Scrapyard | Entered Materials 196 | -10/Materials | Discovered new exit (range 15) 316 | -10/Materials | Build established: Mutant 366 | -10/Materials | Discovered new exit (range 7) 374 | -10/Materials | Identified exit to Materials 683 | -10/Materials | Identified exit to Mines 748 | -10/Materials | Entered Mines 778 | -10/Mines | Assembled infested the area 833 | -10/Mines | Met 8R-AWN 878 | -10/Mines | Discovered exit to Materials (range 6) 988 | -10/Mines | Found the Drone Emporium 998 | -10/Mines | Found Prototype Device 999 | -10/Mines | Identified Sensor Drone Bay 1093 | -10/Mines | Entered Materials 1093 | -9/Materials | Accompanied by 20 allies 1093 | -9/Materials | Evolved 2 slots: Utility x1, Weapon x1 1142 | -9/Materials | Discovered new exit (range 12) 1168 | -9/Materials | Identified exit to Storage 1359 | -9/Materials | Discovered new exit (range 7) 1368 | -9/Materials | Identified exit to Mines 1379 | -9/Materials | Build established: Tank 1472 | -9/Materials | Self-destructed Last Messages --------------- 01362_ Acquired data core, extracted dynamic key. 01366_ K-01 Serf collects debris. 01368_ EXIT=IDENTIFIED: MINES 01370_ K-01 Serf collects debris. 01378_ Y-45 Defender destroyed. 01379_ K-01 Serf collects debris. 01384_ U-05 Engineer builds a Door. 01391_ Acquired 57 matter. 01402_ Sensor Drone retrieved by Sensor Drone Bay. 01418_ Material Processor disabled. 01425_ G-34 Mercenary destroyed. 01430_ Acquired 28 matter. 01431_ K-01 Serf collects debris. 01438_ G-34 Mercenary destroyed. 01439_ K-01 Serf collects debris. 01447_ Acquired 6 matter. 01449_ K-01 Serf collects debris. 01466_ K-01 Serf cleans the Terminal. Map ----- +----------------------------------------------------+ | ?????????????????????????????????????????????????? | | ?????????????????????????????????????????????????? | | ?????????????????????????????????????????????????? | | ?????????????????????????????????????????????????? | | ?????????????????????????????????????????????????? | | ??????????????????????? ???????????????????????? | | ??????????????????????? ???????????????????????? | | ??????????????????????? ???????????????????????? | | ??????????????????????+ #??????????????????????? | | ??????????????????????# #??????????????????????? | | ??????????????????????# #??????????????????????? | | ??????????????????????# #??????????????????????? | | ??????????????????????# #??????????????????????? | | ??????????????????????# #??????????????????????? | | ??????????#########???# #??????????????????????? | | ?????????# #### ##?????????????????????? | | ?????????# ]#""" #?????????????????????? | | ?????????# "" #" #?????????????????????? | | ?????????# "" #"! k #?????????????????????? | | ?????????# "T """ #"" >w #?????????????????????? | | ?????????# "" """ #"! #?????????????????????? | | ?????????# "" """ #" #?????????????????????? | | ?????????# #"""t #?????????????????????? | | ?????????######+#######! ###########????????????? | | ????????????# ##### % #=! =* #????????????? | | ????????????# ] = @/[[""" ##????????????? | | ????????????# # """"" #?????????????? | | ????????????# o #*""""" #?????????????? | | ????????????# ##+######%""" " #?????????????? | | ????????????## ## ##= " #?????????????? | | ?????????????# ## ## %= #?????????????? | | ?????????????# ## ## "T" #?????????????? | | ?????????????# ## """ ## #?????????????? | | ?????######### ## """ ###########?????????????? | | ?????#!!!!! ## ## """ #???????????????????????? | | ?????#!!!!! ## ##/##########???????????????????? | | ?????# ## # / ] #???????????????????? | | ###### ## # #???????????????????? | | % # #???????????????????? | | + """#???????????????????? | | # """#???????????????????? | | #########+#######T### """#???????????????????? | | ????????# [[!####?# """#???????????????????? | | ????????# ] [!!#????# """????????????????????? | | ????????# [!!#????# | #???????????????????? | | ?######## #????##########???????????????????? | | # #?????????????????????????????????? | | # #?????????????????????????????????? | | ########?????????????????????????????????? | | #????????????????????????????????????????? | +----------------------------------------------------+ Best States ------------- Heat Dissipation 28 Energy Generation 10 Energy Capacity 125 Matter Stores 300 Matter Capacity 300 Sight Range 16 Terrain Scan Density 10 Power Shielding 33 Evasion (%) 40 Recoil Reduction 2 Item Schematics ----------------- None Robot Schematics ------------------ None Fabricated ------------ Nothing Alien Tech Used ----------------- None Achievements -------------- Release The Drones! Challenges ------------ None Game ------ Seed MolecularStasisShielding Manual? 0 Play Time 00:15:27 Cumulative 3.2 hours Start 2024.04.15 @ 00:31:26 End 2024.05.13 @ 08:48:28 Sessions 3 Manual Loads 0 Difficulty Rogue Special Mode None Game No. 5 Rogue 5 Adventurer 0 Explorer 0 Win Type - Total 0 Types 0/0/0/0/0/0/0/0/0 Lore% 1 Gallery% 6 Achievement% 7 Wizard Run 0 Options --------- Layout 1 ASCII 0 Keyboard 0 Movement Mouse Keybinds 0 Fullscreen 2 Font 24/Smallcaps Map View 50x35 Zoom Use 0% Tactical HUD 1 Map Filters NONE Filters NONE Steam 1 RUN: 917ecbec-91a5-46c8-82ec-29ac68b38319